fUST/lending_fUST_20240612
["ID","MTS","AMOUNT","RATE_DAILY","PERIOD"]
[329169136,1718148650012,-1892.07,0.00019178,2]
[329169137,1718148650023,-500.0,0.00019178,2]
[329169138,1718148650035,-500.0,0.00019178,2]
[329169139,1718148650046,-500.0,0.00019178,2]
[329169140,1718148650058,-500.0,0.00019178,2]
[329169141,1718148650069,-500.0,0.00019178,2]
[329169142,1718148650081,-500.0,0.00019178,2]
[329169143,1718148650093,-531.70571183,0.00019178,2]
[329169144,1718148650105,-500.0,0.00019178,2]
[329169145,1718148650116,-500.0,0.00019178,2]
[329169146,1718148650129,-500.0,0.00019178,2]
[329169147,1718148650140,-584.91,0.00019178,2]
[329169148,1718148650151,-500.0,0.00019178,2]
[329169149,1718148650162,-7401.03,0.00019178,2]
[329169150,1718148650173,-500.0,0.00019178,2]
[329169151,1718148650184,-500.0,0.00019178,2]
[329169152,1718148650195,-500.0,0.00019178,2]
[329169153,1718148650206,-525.03,0.00019178,2]
[329169154,1718148650216,-500.0,0.00019178,2]
[329169155,1718148650227,-500.0,0.00019178,2]
[329169156,1718148650238,-167.03205706,0.00019178,2]
[329169157,1718148650248,-219.79078929,0.00019178,2]
[329169158,1718148650258,-506.73654918,0.00019178,2]
[329169159,1718148650269,-500.0,0.00019178,2]
[329169160,1718148650280,-500.0,0.00019178,2]
[329169161,1718148650290,-500.0,0.00019178,2]
[329169162,1718148650301,-1385.39,0.00019178,2]
[329169163,1718148650311,-500.0,0.00019178,2]
[329169164,1718148650322,-500.0,0.00019178,2]
[329169165,1718148650332,-500.0,0.00019178,2]
[329169166,1718148650343,-500.0,0.00019178,2]
[329169167,1718148650354,-500.0,0.00019178,2]
[329169168,1718148650363,-554.94673723,0.00019178,2]
[329169169,1718148650375,-500.0,0.00019178,2]
[329169170,1718148650387,-500.0,0.00019178,2]
[329169171,1718148650397,-500.0,0.00019178,2]
[329169172,1718148650408,-500.0,0.00019178,2]
[329169173,1718148650418,-2288.13,0.00019178,2]
[329169174,1718148650430,-500.0,0.00019178,2]
[329169175,1718148650441,-500.0,0.00019178,2]
[329169176,1718148650451,-500.0,0.00019178,2]
[329169177,1718148650462,-500.0,0.00019178,2]
[329169178,1718148650474,-500.0,0.00019178,2]
[329169179,1718148650495,-5996.68,0.00019178,2]
[329169180,1718148650511,-500.0,0.00019178,2]
[329169181,1718148650522,-500.0,0.00019178,2]
[329169182,1718148650532,-500.0,0.00019178,2]
[329169183,1718148650542,-500.0,0.00019178,2]
[329169184,1718148650553,-500.0,0.00019178,2]
[329169185,1718148650564,-500.0,0.00019178,2]
[329169186,1718148650575,-500.0,0.00019178,2]
[329169187,1718148650586,-500.0,0.00019178,2]
[329169188,1718148650597,-500.0,0.00019178,2]
[329169189,1718148650608,-1173.46,0.00019178,2]
[329169190,1718148650618,-500.0,0.00019178,2]
[329169191,1718148650629,-500.0,0.00019178,2]
[329169192,1718148650640,-347.96374724,0.00019178,2]
[329169193,1718148650651,-500.0,0.00019178,2]
[329169194,1718148650662,-467.27665276,0.00019178,2]
[329169195,1718148650672,-500.0,0.00019178,2]
[329169196,1718148650684,-438.90744926,0.00019178,2]
[329169197,1718148650694,-500.0,0.00019178,2]
[329169198,1718148650705,-500.0,0.00019178,2]
[329169199,1718148650715,-500.0,0.00019178,2]
[329169200,1718148650726,-500.0,0.00019178,2]
[329169201,1718148650737,-500.0,0.00019178,2]
[329169202,1718148650751,-500.0,0.00019178,2]
[329169203,1718148650761,-500.0,0.00019178,2]
[329169204,1718148650772,-500.0,0.00019178,2]
[329169205,1718148650783,-500.0,0.00019178,2]
[329169206,1718148650794,-539.88693386,0.00019178,2]
[329169207,1718148650805,-500.0,0.00019178,2]
[329169208,1718148650816,-3826.88,0.00019178,2]
[329169209,1718148650828,-3826.88,0.00019178,2]
[329169210,1718148650839,-263.8325541,0.00019178,2]
[329169211,1718148650850,-3826.88,0.00019178,2]
[329169212,1718148650861,-500.0,0.00019178,2]
[329169213,1718148650872,-500.0,0.00019178,2]
[329169214,1718148650883,-3826.88,0.00019178,2]
[329169215,1718148650893,-264.16649717,0.00019178,2]
[329169216,1718148650904,-590.53411691,0.00019178,2]
[329169217,1718148650914,-3826.88,0.00019178,2]
[329169218,1718148650925,-500.0,0.00019178,2]
[329169219,1718148650935,-3826.88,0.00019178,2]
[329169220,1718148650947,-3826.88,0.00019178,2]
[329169221,1718148650957,-3826.88,0.00019178,2]
[329169222,1718148650968,-3826.88,0.00019178,2]
[329169223,1718148650979,-3826.88,0.00019178,2]
[329169224,1718148650990,-3826.88,0.00019178,2]
[329169225,1718148651001,-540.1720761,0.00019178,2]
[329169226,1718148651013,-358.63649086,0.00019178,2]
[329169227,1718148651023,-500.0,0.00019178,2]
[329169228,1718148651034,-345.94796893,0.00019178,2]
[329169229,1718148651045,-638.04,0.00019178,2]
[329169230,1718148651056,-500.0,0.00019178,2]
[329169231,1718148651066,-500.0,0.00019178,2]
[329169232,1718148651077,-500.0,0.00019178,4]
[329169233,1718148651087,-500.0,0.00019178,2]
[329169234,1718148651098,-500.0,0.00019178,2]
[329169235,1718148651109,-500.0,0.00019178,2]
[329169236,1718148651119,-252.98124906,0.00019178,2]
[329169237,1718148651130,-500.0,0.00019178,2]
[329169238,1718148651140,-500.0,0.00019178,2]
[329169239,1718148651151,-500.0,0.00019178,2]
[329169240,1718148651161,-500.0,0.00019178,2]
[329169241,1718148651172,-500.0,0.00019178,2]
[329169242,1718148651182,-500.0,0.00019178,2]
[329169243,1718148651192,-500.0,0.00019178,2]
[329169244,1718148651202,-500.0,0.00019178,2]
[329169245,1718148651213,-646.66,0.00019178,2]
[329169246,1718148651223,-500.0,0.00019178,2]
[329169247,1718148651234,-164.812497,0.00019178,2]
[329169248,1718148651245,-153.0,0.000192,2]
[329169249,1718148651255,-153.0,0.000192,2]
[329169250,1718148651264,-153.0,0.000192,2]
[329169251,1718148651274,-584.06,0.0001945,2]
[329169252,1718148651284,-3826.88,0.0001945,2]
[329169253,1718148651294,-584.06,0.00019451,2]
[329169254,1718148651304,-584.06,0.00019451,2]
[329169255,1718148651314,-584.06,0.00019451,2]
[329169256,1718148651324,-584.06,0.00019451,2]
[329169257,1718148651334,-584.06,0.00019451,2]
[329169258,1718148651344,-584.06,0.00019451,2]
[329169259,1718148651354,-584.06,0.00019451,2]
[329169260,1718148651364,-584.16,0.00019451,2]
[329169261,1718148651374,-500.0,0.00019451,2]
[329169262,1718148651384,-500.0,0.00019451,2]
[329169263,1718148651394,-500.0,0.00019451,2]
[329169264,1718148651404,-500.0,0.00019451,2]
[329169265,1718148651414,-3826.88,0.00019451,2]
[329169266,1718148651423,-3826.88,0.00019451,2]
[329169267,1718148651434,-3826.88,0.00019451,2]
[329169268,1718148651444,-500.0,0.00019452,2]
[329169269,1718148651454,-217.72873552,0.00019452,2]
[329169270,1718148651463,-500.0,0.00019452,2]
[329169271,1718148651474,-500.0,0.00019452,2]
[329169272,1718148651488,-500.0,0.00019452,2]
[329169273,1718148651506,-500.0,0.00019452,2]
[329169274,1718148651516,-500.0,0.00019452,2]
[329169275,1718148651527,-500.0,0.00019452,2]
[329169276,1718148651537,-500.0,0.00019452,2]
[329169277,1718148651548,-500.0,0.00019452,2]
[329169278,1718148651558,-500.0,0.00019452,2]
[329169279,1718148651567,-500.0,0.00019452,2]
[329169280,1718148651577,-500.0,0.00019452,2]
[329169281,1718148651587,-348.23368899,0.00019452,2]
[329169282,1718148651597,-500.0,0.00019452,2]
[329169284,1718148651607,-500.0,0.00019452,2]
[329169285,1718148651617,-500.0,0.00019452,2]
[329169286,1718148651627,-500.0,0.00019452,2]
[329169287,1718148651637,-501.67826864,0.00019452,2]
[329169288,1718148651649,-500.0,0.00019452,2]
[329169289,1718148651659,-500.0,0.00019452,2]
[329169290,1718148651670,-500.0,0.00019452,2]
[329169291,1718148651680,-500.0,0.00019452,2]
[329169292,1718148651690,-500.0,0.00019452,2]
[329169293,1718148651700,-500.0,0.00019452,2]
[329169294,1718148651711,-399.53,0.00019452,2]
[329169295,1718148651721,-308.49621916,0.00019452,2]
[329169296,1718148651732,-500.0,0.00019452,2]
[329169297,1718148651745,-500.0,0.00019452,2]
[329169298,1718148651755,-500.0,0.00019452,2]
[329169299,1718148651766,-500.0,0.00019452,2]
[329169300,1718148651776,-500.0,0.00019452,2]
[329169301,1718148651787,-500.0,0.00019452,2]
[329169302,1718148651798,-500.0,0.00019452,2]
[329169303,1718148651810,-500.0,0.00019452,2]
[329169304,1718148651821,-500.0,0.00019452,2]
[329169305,1718148651832,-500.0,0.00019452,2]
[329169306,1718148651843,-262.72485685,0.00019452,2]
[329169307,1718148651853,-500.0,0.00019452,2]
[329169308,1718148651863,-500.0,0.00019452,2]
[329169309,1718148651874,-500.0,0.00019452,2]
[329169310,1718148651884,-500.0,0.00019452,2]
[329169311,1718148651895,-505.57692972,0.00019452,2]
[329169312,1718148651905,-500.0,0.00019452,2]
[329169313,1718148651916,-500.0,0.00019452,2]
[329169314,1718148651926,-500.0,0.00019452,2]
[329169315,1718148651940,-500.0,0.00019452,2]
[329169316,1718148651952,-500.0,0.00019452,2]
[329169317,1718148651962,-500.0,0.00019452,2]
[329169318,1718148651972,-500.0,0.00019452,2]
[329169319,1718148651983,-500.0,0.00019452,2]
[329169320,1718148651994,-500.0,0.00019452,2]
[329169321,1718148652005,-300.0,0.00019452,2]
[329169322,1718148652016,-502.87088304,0.00019452,2]
[329169323,1718148652027,-541.75930841,0.00019452,2]
[329169324,1718148652037,-500.0,0.00019452,2]
[329169325,1718148652047,-271.99134172,0.00019452,2]
[329169326,1718148652058,-500.0,0.00019452,2]
[329169327,1718148652069,-500.0,0.00019452,2]
[329169328,1718148652079,-500.0,0.00019452,2]
[329169329,1718148652089,-500.0,0.00019452,2]
[329169330,1718148652100,-500.0,0.00019452,2]
[329169331,1718148652111,-500.0,0.00019452,2]
[329169332,1718148652164,-151.0,0.00019452,2]
[329169333,1718148652178,-412.89557263,0.00019452,2]
[329169334,1718148652192,-500.0,0.00019452,2]
[329169335,1718148652202,-500.0,0.00019452,2]
[329169336,1718148652211,-500.0,0.00019452,2]
[329169337,1718148652222,-500.0,0.00019452,2]
[329169339,1718148652234,-500.0,0.00019452,2]
[329169341,1718148652244,-500.0,0.00019452,2]
[329169342,1718148652254,-500.0,0.00019452,2]
[329169343,1718148652264,-500.0,0.00019452,2]
[329169344,1718148652274,-500.0,0.00019452,2]
[329169345,1718148652284,-500.0,0.00019452,2]
[329169346,1718148652294,-500.0,0.00019452,2]
[329169347,1718148652304,-500.0,0.00019452,2]
[329169348,1718148652314,-500.0,0.00019452,2]
[329169349,1718148652324,-500.0,0.00019452,2]
[329169350,1718148652334,-500.0,0.00019452,2]
[329169351,1718148652345,-151.0,0.00019452,2]
[329169352,1718148652355,-401.38,0.00019452,2]
[329169353,1718148652366,-500.0,0.00019452,2]
[329169354,1718148652377,-500.0,0.00019452,2]
[329169355,1718148652387,-500.0,0.00019452,2]
[329169356,1718148652397,-500.0,0.00019452,2]
[329169357,1718148652409,-500.0,0.00019452,2]
[329169358,1718148652419,-500.0,0.00019452,2]
[329169359,1718148652429,-500.6077994,0.00019452,2]
[329169360,1718148652440,-500.0,0.00019452,2]
[329169361,1718148652450,-500.0,0.00019452,2]
[329169362,1718148652461,-555.55,0.00019452,2]
[329169363,1718148652471,-500.0,0.00019452,2]
[329169364,1718148652490,-500.0,0.00019452,2]
[329169365,1718148652504,-500.0,0.00019452,2]
[329169366,1718148652514,-500.0,0.00019452,2]
[329169367,1718148652524,-500.0,0.00019452,2]
[329169368,1718148652534,-500.0,0.00019452,2]
[329169369,1718148652544,-575.08575379,0.00019452,2]
[329169370,1718148652554,-500.0,0.00019452,2]
[329169371,1718148652564,-500.0,0.00019452,2]
[329169372,1718148652574,-500.0,0.00019452,2]
[329169373,1718148652588,-500.0,0.00019452,2]
[329169374,1718148652599,-500.0,0.00019452,2]
[329169375,1718148652609,-500.0,0.00019452,2]
[329169376,1718148652620,-500.83003739,0.00019452,2]
[329169378,1718148652630,-500.0,0.00019452,2]
[329169380,1718148652640,-500.0,0.00019452,2]
[329169382,1718148652650,-500.0,0.00019452,2]
[329169383,1718148652660,-213.52493226,0.00019452,2]
[329169384,1718148652672,-500.0,0.00019452,2]
[329169385,1718148652682,-500.0,0.00019452,2]
[329169386,1718148652692,-500.0,0.00019452,2]
[329169387,1718148652702,-500.0,0.00019452,2]
[329169388,1718148652713,-500.0,0.00019452,2]
[329169389,1718148652723,-500.0,0.00019452,2]
[329169390,1718148652734,-500.0,0.00019452,2]
[329169391,1718148652748,-500.0,0.00019452,2]
[329169392,1718148652758,-500.0,0.00019452,2]
[329169393,1718148652769,-3315.03,0.00019452,2]
[329169394,1718148652779,-502.83838445,0.00019452,2]
[329169395,1718148652789,-500.0,0.00019452,2]
[329169396,1718148652800,-500.0,0.00019452,2]
[329169397,1718148652811,-500.0,0.00019452,2]
[329169398,1718148652822,-500.0,0.00019452,2]
[329169399,1718148652834,-500.0,0.00019452,2]
[329169400,1718148652844,-546.444611,0.00019452,2]
[329169401,1718148652854,-546.444611,0.00019452,2]
[329169402,1718148652865,-608.90024607,0.00019452,2]
[329169403,1718148652875,-611.39037659,0.00019452,2]
[329169404,1718148652885,-500.0,0.00019452,2]
[329169405,1718148652897,-510.43548497,0.00019452,2]
[329169406,1718148652907,-500.0,0.00019452,2]
[329169407,1718148652917,-500.0,0.00019452,2]
[329169408,1718148652927,-500.0,0.00019452,2]
[329169409,1718148652937,-500.0,0.00019452,2]
[329169410,1718148652948,-500.0,0.00019452,2]
[329169411,1718148652958,-535.60663292,0.00019452,2]
[329169412,1718148652968,-500.0,0.00019452,2]
[329169413,1718148652979,-151.0,0.00019452,2]
[329169414,1718148652990,-151.0,0.00019452,2]
[329169415,1718148653001,-500.0,0.00019452,2]
[329169416,1718148653011,-502.65957187,0.00019452,2]
[329169418,1718148653021,-500.0,0.00019452,2]
[329169420,1718148653032,-698.3,0.00019452,2]
[329169421,1718148653042,-535.86,0.00019452,2]
[329169423,1718148653052,-500.0,0.00019452,2]
[329169425,1718148653062,-500.0,0.00019452,2]
[329169426,1718148653072,-500.0,0.00019452,2]
[329169428,1718148653082,-151.0,0.00019452,2]
[329169429,1718148653092,-500.0,0.00019452,2]
[329169430,1718148653103,-500.0,0.00019452,2]
[329169431,1718148653112,-500.0,0.00019452,2]
[329169432,1718148653122,-500.0,0.00019452,2]
[329169433,1718148653132,-500.0,0.00019452,2]
[329169434,1718148653142,-500.0,0.00019452,2]
[329169435,1718148653152,-1016.926176,0.00019452,2]
[329169436,1718148653163,-500.0,0.00019452,2]
[329169437,1718148653173,-151.0,0.00019452,2]
[329169438,1718148653183,-1016.926176,0.00019452,2]
[329169439,1718148653193,-543.41537668,0.00019452,2]
[329169440,1718148653203,-1693.97,0.00019452,2]
[329169441,1718148653213,-151.0,0.00019452,2]
[329169442,1718148653222,-151.0,0.00019452,2]
[329169443,1718148653233,-500.0,0.00019452,2]
[329169444,1718148653243,-514.33483899,0.00019452,2]
[329169445,1718148653253,-500.0,0.00019452,2]
[329169446,1718148653263,-512.48566568,0.00019452,2]
[329169447,1718148653273,-151.0,0.00019452,2]
[329169448,1718148653283,-1046.29291,0.00019452,2]
[329169449,1718148653293,-1046.29291,0.00019452,2]
[329169450,1718148653303,-500.0,0.00019452,2]
[329169451,1718148653313,-628.03,0.00019452,2]
[329169452,1718148653322,-500.0,0.00019452,2]
[329169453,1718148653332,-761.139834,0.00019452,2]
[329169454,1718148653342,-151.0,0.00019452,2]
[329169455,1718148653351,-761.139834,0.00019452,2]
[329169456,1718148653361,-2924.06,0.00019452,2]
[329169457,1718148653371,-500.0,0.00019452,2]
[329169458,1718148653381,-500.0,0.00019452,2]
[329169459,1718148653391,-513.76,0.00019452,2]
[329169460,1718148653401,-602.96908345,0.00019452,2]
[329169461,1718148653411,-1037.37,0.00019452,2]
[329169462,1718148653421,-500.0,0.00019452,2]
[329169463,1718148653431,-500.0,0.00019452,2]
[329169464,1718148653441,-753.49,0.00019452,2]
[329169465,1718148653451,-500.0,0.00019452,2]
[329169466,1718148653461,-500.0,0.00019452,2]
[329169467,1718148653471,-500.0,0.00019452,2]
[329169468,1718148653493,-151.0,0.00019452,2]
[329169469,1718148653505,-792.01,0.00019452,2]
[329169470,1718148653515,-500.0,0.00019452,2]
[329169471,1718148653525,-500.0,0.00019452,2]
[329169472,1718148653535,-500.0,0.00019452,2]
[329169473,1718148653545,-500.0,0.00019452,2]
[329169474,1718148653555,-500.0,0.00019452,2]
[329169475,1718148653565,-500.0,0.00019452,2]
[329169476,1718148653575,-151.0,0.00019452,2]
[329169477,1718148653585,-500.0,0.00019452,2]
[329169478,1718148653597,-500.0,0.00019452,2]
[329169479,1718148653606,-500.0,0.00019452,2]
[329169480,1718148653616,-500.0,0.00019452,2]
[329169481,1718148653626,-500.0,0.00019452,2]
[329169482,1718148653636,-9023.49,0.00019452,2]
[329169483,1718148653646,-2499.27,0.00019452,2]
[329169484,1718148653656,-500.0,0.00019452,2]
[329169485,1718148653666,-500.0,0.00019452,2]
[329169486,1718148653675,-1691.275542,0.00019452,2]
[329169487,1718148653686,-1691.275542,0.00019452,2]
[329169488,1718148653696,-500.0,0.00019452,2]
[329169489,1718148653706,-500.0,0.00019452,2]
[329169490,1718148653716,-1691.275542,0.00019452,2]
[329169491,1718148653726,-1691.275542,0.00019452,2]
[329169492,1718148653738,-500.0,0.00019452,2]
[329169493,1718148653751,-500.0,0.00019452,2]
[329169494,1718148653762,-151.0,0.00019452,2]
[329169495,1718148653772,-151.0,0.00019452,2]
[329169496,1718148653782,-500.0,0.00019452,2]
[329169497,1718148653793,-264.00827802,0.00019452,2]
[329169498,1718148653803,-500.0,0.00019452,2]
[329169499,1718148653813,-151.0,0.00019452,2]
[329169500,1718148653824,-1592.04,0.00019452,2]
[329169501,1718148653834,-151.0,0.00019452,2]
[329169502,1718148653845,-1892.07,0.00019452,2]
[329169503,1718148653855,-500.0,0.00019452,2]
[329169504,1718148653865,-151.0,0.00019452,2]
[329169505,1718148653874,-500.0,0.00019452,2]
[329169506,1718148653885,-151.0,0.00019452,2]
[329169507,1718148653895,-500.0,0.00019452,2]
[329169508,1718148653905,-500.0,0.00019452,2]
[329169509,1718148653915,-500.0,0.00019452,2]
[329169510,1718148653925,-500.0,0.00019452,2]
[329169511,1718148653935,-383.398212,0.00019452,2]
[329169512,1718148653946,-383.398212,0.00019452,2]
[329169513,1718148653957,-500.0,0.00019452,2]
[329169514,1718148653968,-500.0,0.00019452,2]
[329169515,1718148653980,-500.0,0.00019452,2]
[329169516,1718148653990,-383.398212,0.00019452,2]
[329169517,1718148654000,-383.398212,0.00019452,2]
[329169518,1718148654010,-1000.0,0.00019452,2]
[329169519,1718148654020,-1000.0,0.00019452,2]
[329169520,1718148654031,-1000.0,0.00019452,2]
[329169521,1718148654040,-1000.0,0.00019452,2]
[329169522,1718148654052,-584.91,0.00019452,2]
[329169523,1718148654062,-1000.0,0.00019452,2]
[329169524,1718148654072,-500.0,0.00019452,2]
[329169525,1718148654083,-1000.0,0.00019452,2]
[329169526,1718148654092,-7401.03,0.00019452,2]
[329169527,1718148654102,-1000.0,0.00019452,2]
[329169528,1718148654112,-1000.0,0.00019452,2]
[329169529,1718148654123,-1000.0,0.00019452,2]
[329169530,1718148654133,-1000.0,0.00019452,2]
[329169531,1718148654143,-500.0,0.00019452,2]
[329169532,1718148654153,-1000.0,0.00019452,2]
[329169533,1718148654163,-270.13733601,0.00019452,2]
[329169534,1718148654367,-729.86266399,0.00019452,2]
[329169535,1718148654378,-1000.0,0.00019452,2]
[329169536,1718148654388,-1000.0,0.00019452,2]
[329169537,1718148654398,-1000.0,0.00019452,2]
[329169538,1718148654409,-1000.0,0.00019452,2]
[329169539,1718148654419,-1000.0,0.00019452,2]
[329169540,1718148654429,-1000.0,0.00019452,2]
[329169541,1718148654440,-987.21509108,0.00019452,2]
[329169542,1718148654453,-12.78490892,0.00019452,2]
[329169543,1718148654464,-1000.0,0.00019452,2]
[329169544,1718148654474,-293.9922795,0.00019452,2]
[329169545,1718148655081,-500.0,0.00019178,2]
[329169546,1718148655093,-500.0,0.00019178,2]
[329169547,1718148655103,-559.15,0.00019178,2]
[329169548,1718148655114,-500.0,0.00019178,2]
[329169549,1718148655125,-500.0,0.00019178,2]
[329169550,1718148655135,-500.0,0.00019178,2]
[329169551,1718148655146,-365.28769009,0.00019178,2]
[329169552,1718148655161,-134.71230991,0.00019178,2]
[329169553,1718148655173,-190.04823642,0.00019178,2]
[329169554,1718148655185,-32.20298403,0.00019178,2]
[329169555,1718148655196,-500.0,0.00019178,2]
[329169556,1718148655206,-142.80701597,0.00019178,2]
[329169653,1718149634218,1995.26462774,9.999e-05,2]
[329169654,1718149664065,111.31799224,9.999e-05,2]
[329169655,1718149664103,1984.33083004,9.999e-05,2]
[329169656,1718149682074,2095.64882228,9.999e-05,2]
[329169657,1718149692364,2236.56310285,0.0001789,10]
[329169658,1718149704099,985.6473303,9.999e-05,2]
[329169678,1718149833649,-260.151566,0.00017947,2]
[329169680,1718149833660,-1929.72151101,0.00017947,2]
[329169730,1718149839355,-2734.1693403,0.00017947,2]
[329169742,1718149839798,-4960.27634703,0.00017947,2]
[329169743,1718149839815,-8094.89186306,0.00017947,2]
[329169744,1718149839828,-1295.654326,0.000185,2]
[329169745,1718149839842,-3607.60813674,0.00018505,2]
[329169746,1718149839853,-2444.06054457,0.00018604,2]
[329169747,1718149839865,-153.0,0.00018854,2]
[329169748,1718149839876,-153.0,0.00018854,2]
[329169749,1718149839887,-153.0,0.00018854,2]
[329169750,1718149839898,-153.0,0.00018854,2]
[329169751,1718149839914,-153.0,0.00018854,2]
[329169752,1718149839951,-176.77983818,0.00018854,2]
[329169753,1718149839975,-79.49596402,0.00018854,2]
[329169754,1718149840008,-306.0,0.000189,2]
[329169755,1718149840023,-153.0,0.000189,2]
[329169756,1718149840041,-431.7544452,0.000189,2]
[329169757,1718149840057,-1000.0,0.00019,2]
[329169758,1718149840075,-153.0,0.00019136,2]
[329169759,1718149840089,-153.0,0.00019136,2]
[329169760,1718149840102,-153.0,0.00019136,2]
[329169761,1718149840118,-7267.44042319,0.00019157,2]
[329169762,1718149840129,-172.37615471,0.00019176,2]
[329169763,1718149840141,-157.66978397,0.00019176,2]
[329169764,1718149840152,-1065.36454469,0.00019176,2]
[329169765,1718149840166,-155.14902742,0.00019176,2]
[329169766,1718149840183,-2642.54173153,0.00019176,2]
[329169767,1718149840196,-411.5321918,0.00019176,2]
[329169768,1718149840211,-927.3752309,0.00019176,2]
[329169770,1718149840227,-216.30293909,0.00019176,2]
[329169773,1718149840239,-768.0317581,0.00019176,2]
[329169775,1718149840250,-256.50422984,0.00019176,2]
[329169777,1718149840260,-2410.47181677,0.00019176,2]
[329169779,1718149840273,-7065.32818323,0.00019176,2]
[329169781,1718149840284,-288.67371979,0.00019177,2]
[329169782,1718149840294,-1042.38709298,0.00019178,15]
[329169783,1718149840306,-197.0975994,0.00019178,2]
[329169784,1718149840316,-514.58861848,0.00019178,2]
[329169785,1718149840327,-372.46335035,0.00019178,2]
[329169786,1718149840338,-500.0,0.00019178,2]
[329169787,1718149840348,-185.653754,0.00019178,2]
[329169788,1718149840358,-500.0,0.00019178,2]
[329169789,1718149840368,-500.0,0.00019178,2]
[329169790,1718149840378,-500.0,0.00019178,2]
[329169791,1718149840388,-500.0,0.00019178,2]
[329169792,1718149840399,-500.0,0.00019178,2]
[329169793,1718149840410,-500.0,0.00019178,2]
[329169794,1718149840420,-500.0,0.00019178,2]
[329169795,1718149840430,-500.0,0.00019178,2]
[329169796,1718149840440,-500.0,0.00019178,2]
[329169797,1718149840451,-525.03726627,0.00019178,2]
[329169798,1718149840461,-500.0,0.00019178,2]
[329169799,1718149840472,-500.0,0.00019178,2]
[329169800,1718149840483,-197.38522983,0.00019178,2]
[329169801,1718149840493,-500.0,0.00019178,2]
[329169803,1718149840676,-500.0,0.00019178,2]
[329169804,1718149840687,-505.71464662,0.00019178,2]
[329169805,1718149840700,-500.0,0.00019178,2]
[329169806,1718149840715,-500.0,0.00019178,2]
[329169807,1718149840743,-500.0,0.00019178,2]
[329169808,1718149840769,-500.0,0.00019178,2]
[329169809,1718149840785,-500.0,0.00019178,2]
[329169810,1718149840796,-500.0,0.00019178,2]
[329169811,1718149840807,-500.0,0.00019178,2]
[329169812,1718149840818,-500.0,0.00019178,2]
[329169813,1718149840828,-500.0,0.00019178,2]
[329169814,1718149840840,-500.0,0.00019178,2]
[329169815,1718149840852,-569.99529701,0.00019178,2]
[329169816,1718149840867,-574.35765511,0.00019178,2]
[329169817,1718149840878,-500.0,0.00019178,2]
[329169818,1718149840888,-500.0,0.00019178,2]
[329169819,1718149840903,-500.0,0.00019178,2]
[329169820,1718149840913,-500.0,0.00019178,2]
[329169821,1718149840924,-500.0,0.00019178,2]
[329169822,1718149840956,-500.0,0.00019178,2]
[329169823,1718149840966,-500.77156745,0.00019178,2]
[329169824,1718149840977,-500.0,0.00019178,2]
[329169825,1718149840996,-500.0,0.00019178,2]
[329169826,1718149841013,-500.0,0.00019178,2]
[329169827,1718149841023,-500.0,0.00019178,2]
[329169828,1718149841038,-500.0,0.00019178,2]
[329169829,1718149841057,-500.0,0.00019178,2]
[329169830,1718149841069,-442.7621031,0.00019178,2]